fUSD/lending_fUSD_20260518
["ID","MTS","AMOUNT","RATE_DAILY","PERIOD"]
[422535391,1779041444000,-1223.0,0.0002121,2]
[422535390,1779041444000,-255.79,0.00021205,2]
[422535396,1779041444000,-3543.0,0.00021617,2]
[422535395,1779041444000,-225.15420585,0.000215,2]
[422535398,1779041444000,-1399.55,0.00021845,2]
[422535399,1779041444000,-5000.0,0.00021918,2]
[422535397,1779041444000,-1354.0,0.00021617,2]
[422535394,1779041444000,-58336.63162231,0.000215,2]
[422535400,1779041444000,-3075.54,0.00021918,2]
[422535410,1779041444000,-450.0,0.00022,2]
[422535382,1779041444000,-157.0,0.00021,2]
[422535403,1779041444000,-153.0,0.00022,2]
[422535404,1779041444000,-157.0,0.00022,2]
[422535401,1779041444000,-151.0,0.00021918,2]
[422535402,1779041444000,-155.0,0.00022,2]
[422535407,1779041444000,-813.13523417,0.00022,7]
[422535406,1779041444000,-370333.10395126,0.00022,4]
[422535405,1779041444000,-158.0,0.00022,2]
[422535409,1779041444000,-300.0,0.00022,2]
[422535392,1779041444000,-3632.0,0.00021262,2]
[422535386,1779041444000,-1230.48948908,0.00021,7]
[422535378,1779041444000,-2000.0,0.00020715,2]
[422535375,1779041444000,-3980.72,0.00020548,2]
[422535408,1779041444000,-160.0,0.00022,2]
[422535351,1779041444000,-52317.08224419,0.0002,2]
[422535353,1779041444000,-152.0,0.0002,2]
[422535352,1779041444000,-13089.48861455,0.0002,2]
[422535355,1779041444000,-3907.672545,0.0002,2]
[422535359,1779041444000,-200.0,0.0002,10]
[422535357,1779041444000,-400.0,0.0002,2]
[422535358,1779041444000,-1915.0,0.0002,2]
[422535361,1779041444000,-1927.0,0.0002,2]
[422535370,1779041444000,-3620.0,0.00020231,2]
[422535364,1779041444000,-1399.55,0.0002,2]
[422535369,1779041444000,-914.21,0.000202,2]
[422535368,1779041444000,-528.03498059,0.0002012,2]
[422535365,1779041444000,-200.0,0.0002,2]
[422535371,1779041444000,-1493.0,0.00020381,2]
[422535374,1779041444000,-3980.73,0.00020548,2]
[422535363,1779041444000,-26034.0,0.0002,2]
[422535372,1779041444000,-3980.73,0.00020548,2]
[422535373,1779041444000,-3980.73,0.00020548,2]
[422535367,1779041444000,-300.0,0.000201,10]
[422535380,1779041444000,-155.0,0.00021,2]
[422535383,1779041444000,-158.0,0.00021,2]
[422535381,1779041444000,-153.0,0.00021,2]
[422535379,1779041444000,-163.67,0.00020862,2]
[422535385,1779041444000,-199.54371661,0.00021,2]
[422535377,1779041444000,-22962.33398337,0.000207,2]
[422535366,1779041444000,-1000.0,0.0002,7]
[422535412,1779041444000,-151.0,0.00022,2]
[422535423,1779041444000,-151.0,0.000225,2]
[422535446,1779041444000,-177.320438,0.00023,2]
[422535451,1779041444000,-178.53681148,0.000232,2]
[422535442,1779041444000,-151.0,0.00023,2]
[422535445,1779041444000,-177.320438,0.00023,2]
[422535448,1779041444000,-177.320438,0.00023,2]
[422535444,1779041444000,-177.320438,0.00023,2]
[422535450,1779041444000,-2000.0,0.00023016,2]
[422535447,1779041444000,-151.0,0.00023,2]
[422535449,1779041444000,-151.0,0.00023,2]
[422535453,1779041444000,-300.0,0.00023206,2]
[422535452,1779041444000,-300.0,0.00023206,2]
[422535454,1779041444000,-300.0,0.00023206,2]
[422535456,1779041444000,-300.0,0.00023206,2]
[422535455,1779041444000,-300.0,0.00023206,2]
[422535458,1779041444000,-300.0,0.00023206,2]
[422535457,1779041444000,-300.0,0.00023206,2]
[422535459,1779041444000,-300.0,0.00023206,2]
[422535462,1779041444000,-150.0,0.00023207,2]
[422535461,1779041444000,-253.0,0.00023206,2]
[422535460,1779041444000,-300.0,0.00023206,2]
[422535465,1779041444000,-201.0,0.00023207,2]
[422535464,1779041444000,-150.0,0.00023207,2]
[422535467,1779041444000,-1399.55,0.0002369,2]
[422535466,1779041444000,-12649.0,0.00023314,2]
[422535422,1779041444000,-151.0,0.000225,2]
[422535443,1779041444000,-215.0785988,0.00023,7]
[422535441,1779041444000,-1915.0,0.00023,2]
[422535463,1779041444000,-150.0,0.00023207,2]
[422535438,1779041444000,-648.55480983,0.00023,7]
[422535411,1779041444000,-1915.0,0.00022,2]
[422535439,1779041444000,-312270.16260368,0.00023,2]
[422535421,1779041444000,-914.21,0.000225,7]
[422535413,1779041444000,-6155.0,0.00022053,2]
[422535419,1779041444000,-1756.73,0.00022466,2]
[422535420,1779041444000,-36009.8973857,0.000225,2]
[422535416,1779041444000,-1493.0,0.00022353,2]
[422535414,1779041444000,-526.82970228,0.000221,7]
[422535415,1779041444000,-243.66988495,0.0002211,2]
[422535418,1779041444000,-361.19,0.00022466,2]
[422535424,1779041444000,-273.602189,0.000225,2]
[422535425,1779041444000,-273.602189,0.000225,2]
[422535426,1779041444000,-273.602189,0.000225,2]
[422535417,1779041444000,-1694.95,0.00022466,2]
[422535429,1779041444000,-1226.36,0.000227,14]
[422535437,1779041444000,-158.0,0.00023,2]
[422535431,1779041444000,-500.0,0.00022807,2]
[422535436,1779041444000,-4756.25301534,0.00023,2]
[422535435,1779041444000,-157.0,0.00023,2]
[422535433,1779041444000,-163.0,0.00023,2]
[422535440,1779041444000,-2363.04824145,0.00023,2]
[422535432,1779041444000,-4981.84867545,0.00022969,21]
[422535430,1779041444000,-530.8644361,0.0002271,2]
[422535427,1779041444000,-273.602189,0.000225,2]
[422535428,1779041444000,-3657.25469867,0.000226,2]
[422535434,1779041444000,-170.0,0.00023,2]
[422535504,1779041445000,-245.097139,0.00024658,2]
[422535511,1779041445000,-540.0,0.00025,2]
[422535510,1779041445000,-1808.80138077,0.00025,2]
[422535503,1779041445000,-151.0,0.00024658,2]
[422535508,1779041445000,-181.94,0.00024946,7]
[422535509,1779041445000,-182.53,0.00024946,7]
[422535507,1779041445000,-182.53,0.00024658,2]
[422535501,1779041445000,-297.854146,0.00024658,2]
[422535495,1779041445000,-1354.0,0.00024617,2]
[422535502,1779041445000,-151.0,0.00024658,2]
[422535506,1779041445000,-220.09,0.00024658,2]
[422535505,1779041445000,-181.94,0.00024658,2]
[422535512,1779041445000,-618.94857028,0.00025,2]
[422535526,1779041445000,-1926.4902159,0.00025,2]
[422535514,1779041445000,-3084.00265286,0.00025,2]
[422535516,1779041445000,-7224.00226822,0.00025,2]
[422535515,1779041445000,-613.60702794,0.00025,2]
[422535522,1779041445000,-541.96263774,0.00025,5]
[422535518,1779041445000,-2229.88706687,0.00025,2]
[422535517,1779041445000,-56617.88213438,0.00025,7]
[422535521,1779041445000,-4855.00204044,0.00025,2]
[422535520,1779041445000,-626.10035344,0.00025,5]
[422535530,1779041445000,-177.320438,0.00025,2]
[422535519,1779041445000,-169.55879635,0.00025,2]
[422535523,1779041445000,-2279.78960302,0.00025,2]
[422535525,1779041445000,-1580996.63257137,0.00025,2]
[422535496,1779041445000,-1000.0,0.00024658,2]
[422535513,1779041445000,-7063.72083826,0.00025,21]
[422535493,1779041445000,-742.1877375,0.00024397,2]
[422535472,1779041445000,-1254.40750477,0.00024,2]
[422535494,1779041445000,-3543.0,0.00024617,2]
[422535475,1779041445000,-963.0,0.00024044,2]
[422535470,1779041445000,-169.0,0.00024,2]
[422535469,1779041445000,-175.0,0.00024,2]
[422535471,1779041445000,-3600.0,0.00024,2]
[422535468,1779041445000,-238.41,0.00023915,2]
[422535473,1779041445000,-500.0,0.00024,2]
[422535474,1779041445000,-1915.0,0.00024,2]
[422535479,1779041445000,-473.97,0.00024174,2]
[422535476,1779041445000,-316.04,0.0002411,2]
[422535483,1779041445000,-1223.0,0.0002421,2]
[422535487,1779041445000,-405.16938939,0.00024284,2]
[422535480,1779041445000,-2189.28,0.00024174,2]
[422535481,1779041445000,-11327.49,0.00024174,2]
[422535488,1779041445000,-476.0,0.00024305,10]
[422535477,1779041445000,-1955.04,0.00024174,2]
[422535482,1779041445000,-9999.99,0.00024174,2]
[422535484,1779041445000,-3753.96495443,0.0002421,2]
[422535478,1779041445000,-250.92,0.00024174,2]
[422535486,1779041445000,-150.0,0.00024281,2]
[422535485,1779041445000,-3632.0,0.00024262,2]
[422535490,1779041445000,-1493.0,0.00024324,2]
[422535489,1779041445000,-762.0,0.00024305,10]
[422535500,1779041445000,-151.0,0.00024658,2]
[422535498,1779041445000,-151.0,0.00024658,2]
[422535497,1779041445000,-192.14,0.00024658,2]
[422535491,1779041445000,-525.27670665,0.0002439,2]
[422535499,1779041445000,-151.0,0.00024658,2]
[422535492,1779041445000,-15000.0,0.00024397,2]
[422535529,1779041445000,-177.320438,0.00025,2]
[422535534,1779041445000,-151.0,0.00025,2]
[422535528,1779041445000,-177.320438,0.00025,2]
[422535564,1779041445000,-550.0,0.00026,2]
[422535574,1779041445000,-177.320438,0.00026592,2]
[422535563,1779041445000,-400.29843382,0.00026,20]
[422535565,1779041445000,-225.75,0.00026027,7]
[422535571,1779041445000,-4143.7634998,0.00026592,2]
[422535572,1779041445000,-2354.483631,0.00026592,2]
[422535568,1779041445000,-605.80084441,0.00026397,2]
[422535567,1779041445000,-1493.0,0.00026296,2]
[422535570,1779041445000,-12666.988028,0.00026592,2]
[422535569,1779041445000,-500.0,0.00026443,2]
[422535573,1779041445000,-1730498.1162309,0.00026592,2]
[422535584,1779041445000,-273.602189,0.00026592,2]
[422535582,1779041445000,-273.602189,0.00026592,2]
[422535587,1779041445000,-151.0,0.00026592,2]
[422535579,1779041445000,-151.0,0.00026592,2]
[422535575,1779041445000,-177.320438,0.00026592,2]
[422535580,1779041445000,-151.0,0.00026592,2]
[422535583,1779041445000,-273.602189,0.00026592,2]
[422535577,1779041445000,-151.0,0.00026592,2]
[422535586,1779041445000,-233.331286,0.00026592,2]
[422535576,1779041445000,-177.320438,0.00026592,2]
[422535585,1779041445000,-273.602193,0.00026592,2]
[422535581,1779041445000,-151.0,0.00026592,2]
[422535578,1779041445000,-177.320439,0.00026592,2]
[422535588,1779041445000,-176.36230035,0.00026939,2]
[422535590,1779041445000,-215.0785988,0.00027,3]
[422535531,1779041445000,-151.0,0.00025,2]
[422535566,1779041445000,-320.94012145,0.00026198,2]
[422535561,1779041445000,-219.34301534,0.00026,2]
[422535589,1779041445000,-166.96976216,0.00027,2]
[422535555,1779041445000,-1955.04,0.00025786,2]
[422535556,1779041445000,-250.92,0.00025786,2]
[422535533,1779041445000,-151.0,0.00025,2]
[422535527,1779041445000,-215.0785988,0.00025,7]
[422535524,1779041445000,-150.0,0.00025,2]
[422535535,1779041445000,-151.0,0.00025,2]
[422535537,1779041445000,-273.602189,0.00025,2]
[422535546,1779041445000,-182.53,0.00025234,30]
[422535538,1779041445000,-273.602189,0.00025,2]
[422535536,1779041445000,-273.602189,0.00025,2]
[422535548,1779041445000,-2000.0,0.00025318,2]
[422535545,1779041445000,-181.94,0.00025234,30]
[422535547,1779041445000,-312.25238674,0.00025252,2]
[422535539,1779041445000,-273.602189,0.00025,2]
[422535542,1779041445000,-482.15270711,0.00025142,2]
[422535532,1779041445000,-177.320438,0.00025,2]
[422535540,1779041445000,-151.0,0.00025,2]
[422535552,1779041445000,-2888.0,0.00025646,2]
[422535560,1779041445000,-608.8270149,0.0002599,2]
[422535551,1779041445000,-255.79,0.00025644,2]
[422535553,1779041445000,-1927.0,0.000257,7]
[422535541,1779041445000,-151.0,0.00025,2]
[422535557,1779041445000,-473.97,0.00025786,2]
[422535559,1779041445000,-31263.40837202,0.0002589,5]
[422535549,1779041445000,-605.80084441,0.00025397,2]
[422535554,1779041445000,-1000.0,0.00025776,2]
[422535550,1779041445000,-1399.55,0.00025535,7]
[422535544,1779041445000,-182.5,0.00025234,30]
[422535543,1779041445000,-914.21,0.000252,7]
[422535558,1779041445000,-2189.28,0.00025786,2]
[422535631,1779041446000,-197.722187,0.00027397,2]
[422535628,1779041446000,-291.112548,0.00027397,2]
[422535627,1779041446000,-151.0,0.00027397,2]
[422535625,1779041446000,-151.0,0.00027397,2]
[422535618,1779041446000,-247.836701,0.00027397,2]
[422535635,1779041446000,-162.1229,0.00027397,2]
[422535626,1779041446000,-151.0,0.00027397,2]
[422535623,1779041446000,-151.0,0.00027397,2]
[422535624,1779041446000,-151.0,0.00027397,2]
[422535620,1779041446000,-151.0,0.00027397,2]
[422535634,1779041446000,-17957.99,0.00027397,10]
[422535629,1779041446000,-151.0,0.00027397,2]
[422535638,1779041446000,-3556.82,0.000274,14]
[422535632,1779041446000,-151.0,0.00027397,2]
[422535630,1779041446000,-151.0,0.00027397,2]
[422535636,1779041446000,-160.26,0.000274,7]
[422535639,1779041446000,-3543.0,0.00027617,2]
[422535648,1779041446000,-215.0785988,0.00028,10]
[422535646,1779041446000,-643.0,0.00028,2]
[422535643,1779041446000,-51595.40694348,0.00028,2]
[422535641,1779041446000,-500.0,0.000278,7]
[422535645,1779041446000,-160.0,0.00028,2]
[422535647,1779041446000,-600.0,0.00028,2]
[422535616,1779041446000,-300.0,0.00027397,2]
[422535640,1779041446000,-1354.0,0.00027617,2]
[422535633,1779041446000,-21549.59,0.00027397,10]
[422535614,1779041446000,-500.0,0.00027397,2]
[422535603,1779041446000,-504.0,0.00027137,2]
[422535611,1779041446000,-500.0,0.00027397,2]
[422535637,1779041446000,-360.98,0.000274,7]
[422535596,1779041446000,-500.0,0.00027123,2]
[422535591,1779041446000,-150.0,0.00027123,20]
[422535597,1779041446000,-500.0,0.00027123,2]
[422535593,1779041446000,-500.0,0.00027123,2]
[422535594,1779041446000,-500.0,0.00027123,2]
[422535592,1779041446000,-500.0,0.00027123,2]
[422535595,1779041446000,-500.0,0.00027123,2]
[422535609,1779041446000,-403.8672296,0.00027397,7]
[422535599,1779041446000,-500.0,0.00027123,2]
[422535598,1779041446000,-500.0,0.00027123,2]
[422535602,1779041446000,-380.0,0.00027123,2]
[422535619,1779041446000,-526.72,0.00027397,2]
[422535600,1779041446000,-500.0,0.00027123,2]
[422535604,1779041446000,-1223.0,0.0002721,2]
[422535607,1779041446000,-1399.55,0.0002738,7]
[422535606,1779041446000,-914.21,0.000273,7]
[422535608,1779041446000,-300.0,0.00027396,10]
[422535605,1779041446000,-3632.0,0.00027262,2]
[422535610,1779041446000,-500.0,0.00027397,2]
[422535617,1779041446000,-151.0,0.00027397,2]
[422535612,1779041446000,-500.0,0.00027397,2]
[422535621,1779041446000,-151.0,0.00027397,2]
[422535613,1779041446000,-500.0,0.00027397,2]
[422535622,1779041446000,-151.0,0.00027397,2]
[422535615,1779041446000,-1500.0,0.00027397,2]
[422535601,1779041446000,-392.65031015,0.00027123,2]
[422535649,1779041446000,-1493.0,0.00028267,2]
[422535642,1779041446000,-504.0,0.00027963,2]
[422535690,1779041446000,-302.39,0.00028788,30]
[422535680,1779041446000,-152.23,0.00028725,2]
[422535677,1779041446000,-483.82,0.00028725,2]
[422535681,1779041446000,-154.45,0.0002873,2]
[422535687,1779041446000,-152.23,0.00028756,7]
[422535683,1779041446000,-152.11,0.0002875,2]
[422535686,1779041446000,-312.39,0.00028756,7]
[422535688,1779041446000,-154.45,0.00028763,7]
[422535684,1779041446000,-483.82,0.00028756,7]
[422535689,1779041446000,-483.82,0.00028788,30]
[422535692,1779041446000,-152.23,0.00028788,30]
[422535685,1779041446000,-302.39,0.00028756,7]
[422535691,1779041446000,-312.39,0.00028788,30]
[422535682,1779041446000,-151.61,0.0002875,2]
[422535695,1779041446000,-152.11,0.0002879,7]
[422535704,1779041446000,-483.82,0.00028852,7]
[422535701,1779041446000,-151.61,0.0002883,30]
[422535698,1779041446000,-302.39,0.0002882,2]
[422535696,1779041446000,-154.45,0.00028797,30]
[422535703,1779041446000,-152.11,0.0002883,30]
[422535700,1779041446000,-152.23,0.0002882,2]
[422535699,1779041446000,-312.39,0.0002882,2]
[422535697,1779041446000,-483.82,0.0002882,2]
[422535702,1779041446000,-154.45,0.0002883,2]
[422535706,1779041446000,-312.39,0.00028852,7]
[422535705,1779041446000,-302.39,0.00028852,7]
[422535644,1779041446000,-11962.40962329,0.00028,60]
[422535694,1779041446000,-151.61,0.0002879,7]
[422535679,1779041446000,-312.39,0.00028725,2]
[422535693,1779041446000,-504.0,0.00028789,3]
[422535674,1779041446000,-3556.82,0.000287,14]
[422535651,1779041446000,-1021.96,0.000286,14]
[422535662,1779041446000,-483.82,0.00028661,7]
[422535663,1779041446000,-302.39,0.00028661,7]
[422535650,1779041446000,-403.8672296,0.00028397,7]
[422535653,1779041446000,-212.32691099,0.0002863,2]
[422535654,1779041446000,-402.08668235,0.0002863,2]
[422535652,1779041446000,-1927.0,0.000286,7]
[422535661,1779041446000,-152.23,0.0002863,2]
[422535678,1779041446000,-302.39,0.00028725,2]
[422535660,1779041446000,-312.39,0.0002863,2]
[422535655,1779041446000,-151.61,0.0002863,2]
[422535656,1779041446000,-483.82,0.0002863,2]
[422535658,1779041446000,-154.45,0.0002863,2]
[422535659,1779041446000,-152.11,0.0002863,2]
[422535657,1779041446000,-302.39,0.0002863,2]
[422535672,1779041446000,-152.23,0.00028693,30]
[422535665,1779041446000,-152.23,0.00028661,7]
[422535668,1779041446000,-152.11,0.0002867,7]
[422535666,1779041446000,-154.45,0.00028663,7]
[422535667,1779041446000,-151.61,0.0002867,7]
[422535673,1779041446000,-154.45,0.00028696,30]
[422535676,1779041446000,-152.11,0.0002871,30]
[422535675,1779041446000,-151.61,0.0002871,30]
[422535670,1779041446000,-302.39,0.00028693,30]
[422535669,1779041446000,-483.82,0.00028693,30]
[422535671,1779041446000,-312.39,0.00028693,30]
[422535664,1779041446000,-312.39,0.00028661,7]
[422535754,1779041447000,-302.39,0.00029074,30]
[422535758,1779041447000,-154.45,0.00029098,30]
[422535749,1779041447000,-151.61,0.00029072,30]
[422535752,1779041447000,-483.82,0.00029074,30]
[422535760,1779041447000,-914.21,0.000291,7]
[422535740,1779041447000,-302.39,0.0002901,2]
[422535746,1779041447000,-302.39,0.00029042,7]
[422535747,1779041447000,-312.39,0.00029042,7]
[422535756,1779041447000,-312.39,0.00029074,30]
[422535744,1779041447000,-152.11,0.00029031,7]
[422535751,1779041447000,-203.0,0.00029074,30]
[422535745,1779041447000,-483.82,0.00029042,7]
[422535750,1779041447000,-152.11,0.00029072,30]
[422535787,1779041447000,-151.61,0.00029152,7]
[422535771,1779041447000,-151.61,0.00029112,2]
[422535775,1779041447000,-5027.04767755,0.00029128,3]
[422535763,1779041447000,-440.85,0.00029105,2]
[422535769,1779041447000,-312.39,0.00029105,2]
[422535767,1779041447000,-302.39,0.00029105,2]
[422535779,1779041447000,-440.85,0.00029137,7]
[422535783,1779041447000,-302.39,0.00029137,7]
[422535773,1779041447000,-152.11,0.00029112,2]
[422535785,1779041447000,-312.39,0.00029137,7]
[422535765,1779041447000,-483.82,0.00029105,2]
[422535781,1779041447000,-483.82,0.00029137,7]
[422535777,1779041447000,-154.45,0.00029132,2]
[422535742,1779041447000,-151.61,0.00029031,7]
[422535748,1779041447000,-154.45,0.00029065,7]
[422535738,1779041447000,-509.70236039,0.00029,2]
[422535716,1779041447000,-312.39,0.00028883,30]
[422535734,1779041447000,-312.39,0.00028979,30]
[422535717,1779041447000,-152.23,0.00028883,30]
[422535719,1779041447000,-151.61,0.00028911,7]
[422535708,1779041447000,-154.45,0.00028864,7]
[422535718,1779041447000,-154.45,0.00028897,30]
[422535707,1779041447000,-152.23,0.00028852,7]
[422535709,1779041447000,-151.61,0.00028871,2]
[422535712,1779041447000,-483.82,0.00028883,30]
[422535714,1779041447000,-302.39,0.00028883,30]
[422535710,1779041447000,-152.11,0.00028871,2]
[422535722,1779041447000,-483.82,0.00028915,2]
[422535721,1779041447000,-152.11,0.00028911,7]
[422535723,1779041447000,-302.39,0.00028915,2]
[422535735,1779041447000,-151.61,0.00028991,2]
[422535724,1779041447000,-312.39,0.00028915,2]
[422535732,1779041447000,-483.82,0.00028979,30]
[422535731,1779041447000,-154.45,0.00028964,7]
[422535729,1779041447000,-151.61,0.00028951,30]
[422535730,1779041447000,-152.11,0.00028951,30]
[422535727,1779041447000,-302.39,0.00028947,7]
[422535728,1779041447000,-312.39,0.00028947,7]
[422535733,1779041447000,-302.39,0.00028979,30]
[422535737,1779041447000,-154.45,0.00028998,30]
[422535739,1779041447000,-483.82,0.0002901,2]
[422535743,1779041447000,-154.45,0.00029031,2]
[422535741,1779041447000,-312.39,0.0002901,2]
[422535736,1779041447000,-152.11,0.00028991,2]
[422535725,1779041447000,-154.45,0.00028931,2]
[422535798,1779041447000,-302.39,0.00029169,30]
[422535726,1779041447000,-483.82,0.00028947,7]
[422535796,1779041447000,-483.82,0.00029169,30]
[422535826,1779041447000,-504.0,0.00029615,4]
[422535830,1779041447000,-2251.3244262,0.00029785,2]
[422535834,1779041447000,-2251.3244262,0.00029876,2]
[422535836,1779041447000,-2251.3244262,0.00029918,2]
[422535837,1779041447000,-2251.3244262,0.00029997,2]
[422535840,1779041447000,-500.0,0.0003,2]
[422535838,1779041447000,-3556.82,0.0003,14]
[422535843,1779041447000,-200.0,0.0003,2]
[422535835,1779041447000,-2251.3244262,0.0002988,2]
[422535842,1779041447000,-194.168,0.0003,22]
[422535841,1779041447000,-650.0,0.0003,2]
[422535856,1779041447000,-155.0,0.00030147,30]
[422535839,1779041447000,-12817.94838485,0.0003,10]
[422535845,1779041447000,-215.0785988,0.0003,7]
[422535844,1779041447000,-215.0785988,0.0003,30]
[422535847,1779041447000,-1500.0,0.0003,2]
[422535857,1779041447000,-152.0,0.00030147,30]
[422535858,1779041447000,-153.0,0.00030147,30]
[422535846,1779041447000,-215.0785988,0.0003,3]
[422535848,1779041447000,-308.0,0.0003,2]
[422535850,1779041447000,-959.0,0.0003002,5]
[422535854,1779041447000,-200.0,0.00030137,2]
[422535853,1779041447000,-192.14,0.00030137,2]
[422535855,1779041447000,-150.0,0.00030137,30]
[422535851,1779041447000,-150.0,0.0003013,30]
[422535852,1779041447000,-96420.49519336,0.0003013,7]
[422535791,1779041447000,-154.45,0.00029165,7]
[422535828,1779041447000,-2251.3244262,0.00029742,2]
[422535831,1779041447000,-2251.3244262,0.00029809,2]
[422535849,1779041447000,-2251.3244262,0.00030003,2]
[422535827,1779041447000,-2251.3244262,0.0002965,2]
[422535829,1779041447000,-2251.3244262,0.00029759,2]
[422535802,1779041447000,-151.61,0.00029192,30]
[422535809,1779041447000,-312.39,0.00029201,2]
[422535789,1779041447000,-152.11,0.00029152,7]
[422535804,1779041447000,-152.11,0.00029192,30]
[422535805,1779041447000,-154.45,0.00029199,30]
[422535800,1779041447000,-312.39,0.00029169,30]
[422535808,1779041447000,-302.39,0.00029201,2]
[422535807,1779041447000,-483.82,0.00029201,2]
[422535806,1779041447000,-440.85,0.00029201,2]
[422535812,1779041447000,-153.10219616,0.00029204,7]
[422535810,1779041447000,-150.54389862,0.00029204,7]
[422535811,1779041447000,-181.73994664,0.00029204,7]
[422535818,1779041447000,-154.55,0.00029232,2]
[422535793,1779041447000,-440.85,0.00029169,30]
[422535816,1779041447000,-484.0,0.00029232,7]
[422535817,1779041447000,-302.46,0.00029232,7]
[422535824,1779041447000,-2251.3244262,0.0002956,2]
[422535823,1779041447000,-150.0,0.00029534,2]
[422535825,1779041447000,-2251.3244262,0.00029582,2]
[422535832,1779041447000,-2251.3244262,0.00029812,2]
[422535833,1779041447000,-2251.3244262,0.00029846,2]
[422535821,1779041447000,-1572.578401,0.000295,2]
[422535822,1779041447000,-2251.3244262,0.00029516,2]
[422535820,1779041447000,-312.48,0.00029232,7]
[422535819,1779041447000,-152.12,0.00029232,2]
[422535815,1779041447000,-151.76,0.00029232,2]
[422535813,1779041447000,-1399.55,0.00029225,7]
[422535814,1779041447000,-441.01,0.00029232,7]
[422535880,1779041448000,-363.47989327,0.00030564,7]
[422535882,1779041448000,-306.20439232,0.00030564,7]
[422535891,1779041448000,-2251.3244262,0.00030772,2]
[422535885,1779041448000,-3543.0,0.00030617,2]
[422535884,1779041448000,-2251.3244262,0.00030574,2]
[422535888,1779041448000,-2251.3244262,0.00030642,2]
[422535889,1779041448000,-360.98,0.000307,7]
[422535893,1779041448000,-2251.3244262,0.00030856,2]
[422535886,1779041448000,-1354.0,0.00030617,2]
[422535904,1779041448000,-155.0,0.00031147,30]
[422535900,1779041448000,-5530.0,0.00031,3]
[422535892,1779041448000,-2251.3244262,0.00030812,2]
[422535894,1779041448000,-2251.3244262,0.00030877,2]
[422535899,1779041448000,-914.21,0.00031,7]
[422535896,1779041448000,-150.0,0.0003098,30]
[422535897,1779041448000,-2251.3244262,0.00030983,2]
[422535901,1779041448000,-150.0,0.00031011,2]
[422535898,1779041448000,-2251.3244262,0.00030986,2]
[422535895,1779041448000,-1000.0,0.00030918,4]
[422535890,1779041448000,-2251.3244262,0.00030711,2]
[422535902,1779041448000,-1399.55,0.0003107,7]
[422535903,1779041448000,-200.0,0.00031096,2]
[422535887,1779041448000,-150.0,0.00030635,30]
[422535868,1779041448000,-1493.0,0.00030239,2]
[422535881,1779041448000,-198.38055013,0.00030564,7]
[422535907,1779041448000,-157.0,0.00031147,30]
[422535859,1779041448000,-157.0,0.00030147,30]
[422535861,1779041448000,-151.0,0.00030147,30]
[422535860,1779041448000,-158.0,0.00030147,30]
[422535862,1779041448000,-1915.0,0.00030147,30]
[422535863,1779041448000,-2251.3244262,0.00030158,2]
[422535864,1779041448000,-2732.94,0.000302,2]
[422535867,1779041448000,-1223.0,0.0003021,2]
[422535865,1779041448000,-49770.0,0.000302,2]